Cogmind - Beta 13 @@@ ROGUE MODE // 2024.04.12 @ 17:55:52 Player: NitroKuite Result: Destroyed by L-31 Rogue with Katana Performance ------------- Evolutions (2) 1000 Regions Visited (5) 1000 Robots Destroyed (28) 140 Value Destroyed (771) 771 Prototype IDs (0) 0 Alien Tech Used (0) 0 Bonus (780) 780 TOTAL SCORE: 3691 Bonus ------- Follower Combat Kills 80 Entered Garrisons 200 Used RIF Installer 500 Cogmind --------- Core Integrity 0/550 Matter 286/300 Energy 100/100 System Corruption 0% Temperature Cool (0) Movement Core (350) Ox6 Location -8/Materials Parts ------- > --- POWER (1) -------- (None) > --- PROPULSION (4) --- (None) > --- UTILITY (4) ------ Large Storage Unit Transport Network Coupler > --- WEAPON (2) ------- (None) > --- INVENTORY (15) --- Light Treads Flight Unit Flight Unit Flight Unit Heat Sink Small Storage Unit Seismic Detector Peak State ------------ > --- POWER ------------ Light Angular Momentum Engine > --- PROPULSION ------- Light Treads Light Treads Light Treads > --- UTILITY ---------- Heat Sink Large Storage Unit Medium Battery > --- WEAPON ----------- Beam Rifle Beam Rifle > --- INVENTORY -------- Light Nuclear Core Light Treads Carbon-fiber Leg Small Storage Unit Medium Battery Seismic Detector Small Laser Beam Rifle Light Assault Rifle Datajack Datajack [Rating: 16] Favorites ----------- Power Light Nuclear Core Engine Ion Engine Power Core Light Nuclear Core Propulsion Aluminum Leg Treads Light Treads Leg Aluminum Leg Wheel Wheel Flight Unit Flight Unit Utility Large Storage Unit Device Heat Sink Storage Large Storage Unit Processor Terrain Scan Processor Weapon Beam Rifle Energy Gun Beam Rifle Ballistic Gun Light Assault Rifle Special Melee Weapon Datajack Build | -11 -10 -9 -9 -9 -8 ------- Run | Yrd Mat Mat Sto Gar Mat Slots Evolved 4 | . . 2 . . 2 Power . | . . . . . . Propulsion 2 | . . 1 . . 1 Utility 2 | . . 1 . . 1 Weapon . | . . . . . . Parts Attached 51 | 6 8 5 . 24 8 Power 6 | 1 2 . . 2 1 Engine 4 | 1 1 . . 1 1 Core 2 | . 1 . . 1 . Reactor . | . . . . . . Propulsion 20 | 2 3 2 . 7 6 Treads 4 | . . . . 4 . Leg 10 | . 2 2 . 3 3 Wheel 3 | 2 1 . . . . Hover . | . . . . . . Flight 3 | . . . . . 3 Utility 10 | 1 2 1 . 6 . Device 2 | . . . . 2 . Storage 4 | 1 1 . . 2 . Processor 4 | . 1 1 . 2 . Hackware . | . . . . . . Protection . | . . . . . . Artifact . | . . . . . . Weapon 15 | 2 1 2 . 9 1 Energy Gun 7 | . . 2 . 5 . Energy Cannon . | . . . . . . Ballistic Gun 3 | 2 . . . 1 . Ballistic Cannon . | . . . . . . Launcher . | . . . . . . Special Weapon . | . . . . . . Impact Weapon . | . . . . . . Slashing Weapon . | . . . . . . Piercing Weapon . | . . . . . . Special Melee Weapon 5 | . 1 . . 3 1 Unidentified Prototypes . | . . . . . . Parts Lost 22 | . 3 1 2 8 8 Power 3 | . . . . 2 1 Propulsion 10 | . 2 1 1 3 3 Utility 2 | . . . . 1 1 Weapon 7 | . 1 . 1 2 3 Highest Loss Streak 8 | . 3 1 2 4 8 To Critical Strikes . | . . . . . . Average Slot Usage (%) 92 | . 94 99 78 94 59 Engine 4 | . 12 . . 2 5 Core 5 | . 1 11 11 6 . Treads 10 | . . . . 20 . Leg 14 | . 11 32 17 9 16 Wheel 3 | . 14 . . . . Device 5 | . . . . 9 . Storage 16 | . 14 11 11 19 14 Processor 8 | . 11 22 22 3 9 Energy Gun 11 | . . 14 17 16 5 Ballistic Gun 7 | . 21 5 . 1 . Special Melee Weapon 3 | . 6 1 . 2 7 Naked Turns . | . . . . . . Heaviest Build 38 | 11 28 27 27 38 35 Greatest Support 60 | 26 26 30 20 60 35 Greatest Overweight (x) 8 | 2 8 1 2 2 6 Average Overweight (x) . | . . . 1 . . Largest Inventory Capacity 15 | 8 15 15 15 15 15 Average Capacity 14 | 7 14 15 15 15 15 Most Carried 12 | 2 12 11 10 11 9 Average Carried 7 | . 7 9 10 7 7 Final Capacity 15 | 8 15 15 15 15 15 Final Carried 12 | 2 12 10 10 8 7 Class Distribution -------------------- 69% | Scavenger-Mutant 30% | Mutant Dominant Class ---------------- Mutant | -10/Materials Scavenger-Mutant | -9/Materials Scavenger-Mutant | -9/Storage Scavenger-Mutant | -9/Garrison Scavenger-Mutant | -8/Materials Resources | -11 -10 -9 -9 -9 -8 ----------- Run | Yrd Mat Mat Sto Gar Mat Matter Collected 731 | 209 223 62 . 237 . Remotely . | . . . . . . Salvage Created 1113 | . 293 208 . 612 . Parts 77 | . 27 17 . 33 . Haulers Intercepted . | . . . . . . Recyclers Shooed . | . . . . . . Parts Field Recycled . | . . . . . . Retrieved Matter . | . . . . . . Parts Self-Destructed . | . . . . . . Prevented . | . . . . . . Kills | -11 -10 -9 -9 -9 -8 ------- Run | Yrd Mat Mat Sto Gar Mat Combat Hostiles Destroyed 24 | . 6 5 . 13 . Guns 23 | . 6 5 . 12 . Classes Destroyed 5 | . 3 2 . . . Builder 2 | . 1 1 . . . Watcher 2 | . 1 1 . . . Swarmer 6 | . . 3 . 3 . Grunt 14 | . 6 1 . 7 . Sentry 4 | . . 1 . 3 . Best Kill Streak 3 | . 2 3 . 3 . Combat Bots Only 3 | . 2 3 . 3 . Max Kills in Single Turn 1 | . 1 1 . 1 . Gunslinging . | . . . . . . Exploded . | . . . . . . Melee . | . . . . . . Uniques/NPCs Destroyed . | . . . . . . Combat | -11 -10 -9 -9 -9 -8 -------- Run | Yrd Mat Mat Sto Gar Mat Hostile Shots Fired 272 | . 42 38 . 127 65 Missed 63 | . 12 8 . 29 14 Damage Taken 2948 | . 344 310 65 1163 1066 Core 904 | . 61 54 10 203 576 Absorbed by Shields . | . . . . . . Regen/Repaired (Parts) 57 | . . 57 . . . Core Remaining (%) 69 | 100 75 . . 33 . Volleys Fired 114 | . 38 19 4 50 3 Largest 2 | . 2 2 1 2 1 Hottest 112 | . 40 80 40 112 56 Shots Fired 192 | . 61 38 4 86 3 Gun 192 | . 61 38 4 86 3 Cannon . | . . . . . . Launcher . | . . . . . . Special . | . . . . . . Kinetic 80 | . 61 12 . 7 . Thermal 112 | . . 26 4 79 3 Explosive . | . . . . . . Electromagnetic . | . . . . . . Robot Hit Streak 21 | . 7 3 2 21 2 Robot Miss Streak 5 | . 3 5 1 2 1 Penetration Max . | . . . . . . Secondary Targets 1 | . . . . 1 . Max Gunslinging Chain 1 | . . . . 1 . Shots Hit Robots 150 | . 42 19 2 79 8 Core Hits 55 | . 14 11 1 26 3 Critical Kills . | . . . . . . Critical Parts Destroyed . | . . . . . . Critical Strikes 1 | . . . . 1 . Burn 1 | . . . . 1 . Melee Attacks 27 | . 3 . . 15 9 Impact . | . . . . . . Slashing . | . . . . . . Piercing . | . . . . . . Sneak Attacks 5 | . 1 . . 4 . Combat Hostiles . | . . . . . . Follow-up Attacks . | . . . . . . Damage Inflicted 1579 | . 386 216 21 924 32 Guns 1556 | . 386 196 21 924 29 Cannons . | . . . . . . Explosions . | . . . . . . Melee . | . . . . . . Ramming 23 | . . 20 . . 3 Kinetic 492 | . 386 58 . 48 . Thermal 1064 | . . 138 21 876 29 Explosive . | . . . . . . Electromagnetic . | . . . . . . Impact . | . . . . . . Slashing . | . . . . . . Piercing . | . . . . . . Highest Corruption 2 | . 2 . . 1 . Average Corruption 1 | . 2 . . 1 . Corruption Purged . | . . . . . . Corruption Blocked . | . . . . . . Effects 6 | . 6 . . . . Message Errors 3 | . 3 . . . . Data Loss (minor) 2 | . 2 . . . . Weapon Failures 1 | . 1 . . . . Overload Shots . | . . . . . . Overflow Damage . | . . . . . . Projectiles . | . . . . . . Explosions . | . . . . . . Melee . | . . . . . . Knockbacks . | . . . . . . Impact . | . . . . . . Kinetic . | . . . . . . Secondary . | . . . . . . Self-Inflicted Damage . | . . . . . . Shots . | . . . . . . Rammed 6 | . . . . . 6 Targets Rammed 13 | . . 7 . . 6 Kicked 7 | . . 7 . . . Crushed . | . . . . . . Highest Temperature 257 | . 12 81 . 257 18 Average Temperature 55 | . 6 25 . 79 9 Received Heat Transfer 1128 | . 189 93 . 504 342 Effects 1 | . . . . 1 . Energy Bleed 1 | . . . . 1 . Siege Activations . | . . . . . . Robots Corrupted . | . . . . . . Combat Hostiles . | . . . . . . Parts Fried . | . . . . . . Impact Corruptions . | . . . . . . Robots Melted 1 | . . . . 1 . Combat Hostiles 1 | . . . . 1 . Parts Melted 5 | . . 1 . 4 . Heat Transferred 2614 | . . 300 50 2190 74 Parts Sabotaged . | . . . . . . Parts Stolen . | . . . . . . Parts Stripped . | . . . . . . Power Chain Reactions . | . . . . . . Alert | -11 -10 -9 -9 -9 -8 ------- Run | Yrd Mat Mat Sto Gar Mat Peak Influence 483 | . 147 219 92 483 240 Initial 235 | . . 10 92 46 235 Average 164 | . 41 110 82 249 211 Maximum Alert Level 2 | . . 1 . 2 1 Low Security (%) 65 | 100 100 97 100 39 35 Level 1 29 | . . 2 . 50 65 Level 2 5 | . . . . 10 . Level 3 . | . . . . . . Level 4 . | . . . . . . Level 5 . | . . . . . . High Security . | . . . . . . Max Security . | . . . . . . Squads Dispatched 4 | . 2 1 . . 1 Investigation 3 | . 2 . . . 1 Extermination . | . . . . . . Reinforcement 1 | . . 1 . . . Assault . | . . . . . . Garrison . | . . . . . . Intercept . | . . . . . . Searches Triggered . | . . . . . . Construction Impeded . | . . . . . . Haulers Reinforced . | . . . . . . Active Scanning Responses . | . . . . . . Cargo Convoy Interrupts . | . . . . . . Stealth | -11 -10 -9 -9 -9 -8 --------- Run | Yrd Mat Mat Sto Gar Mat Distress Signals 2 | . 1 1 . . . Communications Jammed . | . . . . . . Distress Signals . | . . . . . . Times Spotted 52 | . 12 11 1 20 8 Peak Tracking Total 7 | . 4 4 1 4 7 Tactical Retreats 3 | . 1 . . 2 . Traps | -11 -10 -9 -9 -9 -8 ------- Run | Yrd Mat Mat Sto Gar Mat Traps Triggered 8 | . 3 . 2 3 . Indirectly . | . . . . . . Trap Hack Attempts . | . . . . . . Triggered . | . . . . . . Disarmed . | . . . . . . Reprogrammed . | . . . . . . Reused . | . . . . . . Traps Extracted . | . . . . . . Installed . | . . . . . . Triggered . | . . . . . . Machines | -11 -10 -9 -9 -9 -8 ---------- Run | Yrd Mat Mat Sto Gar Mat Machines Disabled . | . . . . . . Max in Single Turn . | . . . . . . Machines Repaired . | . . . . . . Machines Dismantled . | . . . . . . Machines Sabotaged . | . . . . . . Overloaded Fab Kills . | . . . . . . Hacking | -11 -10 -9 -9 -9 -8 --------- Run | Yrd Mat Mat Sto Gar Mat Machines Accessed 10 | . 5 1 1 2 1 Terminals 8 | . 5 . . 2 1 Fabricators . | . . . . . . Repair Stations 1 | . . 1 . . . Recycling Units . | . . . . . . Scanalyzers . | . . . . . . Garrison Access 1 | . . . 1 . . Total Hacks 25 | . 11 3 1 7 3 Successful 11 | . 4 2 1 1 3 Failed 14 | . 7 1 . 6 . Catastrophic . | . . . . . . Database Lockouts . | . . . . . . Manual 2 | . . . . 2 . Terminals 21 | . 11 . . 7 3 Fabricators . | . . . . . . Repair Stations 3 | . . 3 . . . Recycling Units . | . . . . . . Scanalyzers . | . . . . . . Garrison Access 1 | . . . 1 . . Terminal Hacks 8 | . 4 . . 1 3 Record 1 | . . . . . 1 Open Door 1 | . . . . 1 . Branch Access Points 1 | . . . . . 1 Alert Level 2 | . 2 . . . . Transport Status 1 | . 1 . . . . Investigation Status 1 | . . . . . 1 Zone Layout 1 | . 1 . . . . Fabricator Hacks . | . . . . . . Repair Station Hacks 2 | . . 2 . . . Scan Component 1 | . . 1 . . . Repair 1 | . . 1 . . . Recycling Unit Hacks . | . . . . . . Scanalyzer . | . . . . . . Garrison Access Hacks 1 | . . . 1 . . Unlock Access 1 | . . . 1 . . Unauthorized Hacks . | . . . . . . Terminals . | . . . . . . Fabricators . | . . . . . . Repair Stations . | . . . . . . Recycling Units . | . . . . . . Scanalyzers . | . . . . . . Garrison Access . | . . . . . . Data Cores Recovered . | . . . . . . Used . | . . . . . . Hacking Detections 10 | . 5 1 1 2 1 Full Trace Events 2 | . 1 . . . 1 Feedback Events . | . . . . . . Feedback Blocked . | . . . . . . Robot Schematics Acquired . | . . . . . . Robots Built . | . . . . . . Authchips . | . . . . . . Time . | . . . . . . Total Robot Build Rating . | . . . . . . Part Schematics Acquired . | . . . . . . Parts Built . | . . . . . . Authchips . | . . . . . . Time . | . . . . . . Total Part Build Rating . | . . . . . . Parts Repaired 1 | . . 1 . . . Time 26 | . . 26 . . . Parts Recycled . | . . . . . . Recycled Matter . | . . . . . . Retrieved Matter . | . . . . . . Retrieved Components . | . . . . . . Parts Scanalyzed . | . . . . . . Part Schematics Acquired . | . . . . . . Parts Damaged . | . . . . . . Bothacking | -11 -10 -9 -9 -9 -8 ------------ Run | Yrd Mat Mat Sto Gar Mat Used RIF Installer 1 | . . . . 1 . Robots Hacked 4 | . 1 . . 1 2 Non-combat . | . . . . . . Combat 4 | . 1 . . 1 2 Robot Hacks Applied 7 | . 1 . . 1 5 parse_system 7 | . 1 . . 1 5 Relay Couplers Released . | . . . . . . Fabnet Peak Effective % . | . . . . . . Robots Rewired 2 | . . . . 2 . Allies Hacked . | . . . . . . Hacks Repelled . | . . . . . . Allies | -11 -10 -9 -9 -9 -8 -------- Run | Yrd Mat Mat Sto Gar Mat Total Allies 2 | . . . . 2 . Largest Group 2 | . . . . 2 . Highest-Rated Group 62 | . . . . 62 . Highest-Rated Ally 31 | . . . . 31 . Total Orders . | . . . . . . Ally Attacks 13 | . . . . 13 . Total Damage 191 | . . . . 191 . Kills 4 | . . . . 4 . Allies Corrupted . | . . . . . . Allies Melted . | . . . . . . Intel | -11 -10 -9 -9 -9 -8 ------- Run | Yrd Mat Mat Sto Gar Mat Robot Analysis Total . | . . . . . . Derelict Logs Recovered . | . . . . . . Drone Launches . | . . . . . . Drone Recoveries . | . . . . . . Exploration | -11 -10 -9 -9 -9 -8 ------------- Run | Yrd Mat Mat Sto Gar Mat Turns Passed 2666 | 58 696 341 92 1339 140 Spaces Moved 1447 | 51 386 193 40 729 48 Core 25 | 17 1 . . . 7 Treads 441 | . . . . 441 . Legs 709 | . 147 193 40 288 41 Wheels 272 | 34 238 . . . . Hover . | . . . . . . Flight . | . . . . . . Fastest Speed 50 | 50 90 120 190 120 120 Average Speed 140 | 88 136 121 214 145 157 Slowest Speed 450 | 150 450 190 260 260 350 Overloaded Moves . | . . . . . . Propulsion Burnouts . | . . . . . . Robots Hopped . | . . . . . . Cave-ins Triggered . | . . . . . . Exploration Rate (%) 26 | 3 65 20 12 56 4 Regions Visited 5 Branch Regions 1 Pre-discovered Areas . | . . . . . . Known Exits Taken 2 | . . 1 1 . . Unknown Exits Taken 2 | 1 1 . . . . Scrap Searched . | . . . . . . Spaces Dug . | . . . . . . Terrain Destroyed . | . . . . . . Melee . | . . . . . . Projectile . | . . . . . . AOE . | . . . . . . Terrain Rammed . | . . . . . . Walls Destroyed . | . . . . . . Machines Disabled . | . . . . . . Actions | -11 -10 -9 -9 -9 -8 --------- Run | Yrd Mat Mat Sto Gar Mat Total 1863 | 60 499 262 43 913 86 Wait 168 | 2 52 38 . 65 11 Move 1439 | 50 385 192 39 725 48 Hop . | . . . . . . Pick Up 31 | 2 12 1 . 15 1 Fast Attach 10 | 6 3 . . 1 . Attach 18 | . 3 3 . 10 2 Detach 1 | . 1 . . . . Swap 23 | . 2 2 . 13 6 Drop 5 | . . . . 5 . Fire 114 | . 38 19 4 50 3 Melee 27 | . 3 . . 15 9 Ram 6 | . . . . . 6 Kick 7 | . . 7 . . . Crush . | . . . . . . Escape Stasis 10 | . . . . 10 . Rewire 4 | . . . . 4 . Trap . | . . . . . . Miscellaneous . | . . . . . . Route ------- -11/Scrapyard -10/Materials (discovered 3 exits: *Mat / [*Min x2]) -9/Materials -9/Storage -9/Garrison (discovered 2 exits: *Mat x2) -8/Materials History --------- Turn | Location | Event 2 | -11/Scrapyard | Met Revision 17 19 | -11/Scrapyard | Discovered new exit (range 16) 59 | -11/Scrapyard | Entered Materials 180 | -10/Materials | Met 8R-AWN 193 | -10/Materials | Discovered new exit (range 5) 318 | -10/Materials | Build established: Mutant 471 | -10/Materials | Lost 3 parts (2n1w) 505 | -10/Materials | Discovered new exit (range 16) 718 | -10/Materials | Discovered new exit (range 15) 755 | -10/Materials | Entered another Materials area 755 | -9/Materials | Evolved 2 slots: Propulsion x1, Utility x1 815 | -9/Materials | Repaired Aluminum Leg? 975 | -9/Materials | Build established: Scavenger-Mutant 1075 | -9/Materials | Discovered new exit (range 7) 1090 | -9/Materials | Identified exit to Storage 1096 | -9/Materials | Entered Storage 1185 | -9/Storage | Identified exit to Garrison 1188 | -9/Storage | Entered Garrison 1352 | -9/Garrison | Triggered checkpoint 1520 | -9/Garrison | Triggered checkpoint 1621 | -9/Garrison | Discovered new exit (range 13) 1730 | -9/Garrison | Triggered checkpoint 1966 | -9/Garrison | Triggered checkpoint 2062 | -9/Garrison | Attempted to access garrison exit controls, blocked by remote lockdown 2085 | -9/Garrison | Core integrity fell below 50% 2138 | -9/Garrison | Lost 4 parts (1p1n2w) 2160 | -9/Garrison | Installed Relay Interface Framework 2323 | -9/Garrison | Discovered new exit (range 10) 2470 | -9/Garrison | Triggered checkpoint 2527 | -9/Garrison | Entered Materials 2527 | -8/Materials | Evolved 2 slots: Propulsion x1, Utility x1 2637 | -8/Materials | Core integrity fell below 50% 2655 | -8/Materials | Core integrity fell below 20% 2657 | -8/Materials | Lost 8 parts (1p3n1u3w) 2667 | -8/Materials | Destroyed by L-31 Rogue with Katana Last Messages --------------- Jacked L-31 Rogue... Command string: kill No effect. Datajack destroyed. Deuterium Engine destroyed. Slammed into L-31 Rogue. Destabilizing: Core damaged (-5). Datajack destroyed. Critical hit (Burn: +37). Slammed into L-31 Rogue. Destabilizing: System interference. Transport Network Coupler temporarily disabled. Slammed into L-31 Rogue. Destabilizing: Core damaged (-5). Critical hit (Burn: +37). Penetrated by Slug. Slug penetrates Wall. Critical hit (Burn: +37). Penetrated by Slug. Slammed into L-31 Rogue. Map ----- +----------------------------------------------------+ | ???????????????????????????????????? | | ???????????????????????????????????? | | ???????????????????????????????????? | | ???????????????????????????????????? | | ???????????????????????????????????? | | ???????????????????????????????????? | | ???????????????????????????????????? | | ???????????????????????????????????? | | ???????????????????????????????????? | | ???????????????????????????????????? | | ??????????? ???????????????????????? | | ??????????? ???????????????????????? | | ??????????? ???????????????????????? | | ??????????? ???????????????????????? | | ??????????? ???????????????????????? | | ??????????? ???????????????????????? | | ??????????? ???????????????????????? | | ??????????# #??????????????????????? | | ??????????# #??????????????????????? | | ??????????+ ??????????????????????? | | ??????????# #??????????????????????? | | ??????????# #??????????????????????? | | ??????????#g#??????????????????????? | | ??????????#g#??????????????????????? | | ??????????#l#??????????????????????? | | ??????????#@#??????????????????????? | | ??????????# #########??????????????? | | ??????????# # #??????????????? | | #########?# # #??????????????? | | # T #?#g# #??????????????? | | # ### # #??????????????? | | # # # #??????????????? | | # # + #??????????????? | | # # # #??????????????? | | # """ + # #??????????????? | | # """ # # #??????????????? | | # """ # # #??????????????? | | # # # #??????????????? | | # #############??????????????? | | # #??????????????????????????? | | #########??????????????????????????? | | ???????????????????????????????????? | | ???????????????????????????????????? | | ???????????????????????????????????? | | ???????????????????????????????????? | | ???????????????????????????????????? | | ???????????????????????????????????? | | ???????????????????????????????????? | | ???????????????????????????????????? | | ???????????????????????????????????? | +----------------------------------------------------+ Best States ------------- Heat Dissipation 38 Energy Generation 18 Energy Capacity 425 Matter Stores 300 Matter Capacity 300 Sight Range 18 Terrain Scan Density 85 Evasion (%) 55 Recoil Reduction 3 Item Schematics ----------------- None Robot Schematics ------------------ None Fabricated ------------ Nothing Alien Tech Used ----------------- None Achievements -------------- A New Friend Challenges ------------ None Game ------ Seed MappingSmallPurifier Manual? 0 Play Time 00:40:24 Cumulative 4.5 hours Start 2024.04.12 @ 14:53:08 End 2024.04.12 @ 17:55:52 Sessions 2 Manual Loads 0 Difficulty Rogue Special Mode None Game No. 10 Rogue 10 Adventurer 0 Explorer 0 Win Type - Total 0 Types 0/0/0/0/0/0/0/0/0 Lore% 7 Gallery% 10 Achievement% 11 Wizard Run 0 Options --------- Layout 1 ASCII 0 Keyboard 1 Movement Numpad Keybinds 0 Fullscreen 1 Font 32/SmallcapsGlow Map View 50x35 Zoom Use 0% Tactical HUD 0 Map Filters NONE Filters NONE Steam 1 RUN: 7e445c89-1bd2-45a8-81ab-fe746c351e45